fUSD/lending_fUSD_20260309
["ID","MTS","AMOUNT","RATE_DAILY","PERIOD"]
[408029296,1773051041784,-500.0,0.00019782,2]
[408029297,1773051041794,-1672.0,0.00019782,2]
[408029298,1773051041803,-837.0,0.00019782,2]
[408029299,1773051041812,-500.0,0.00019782,2]
[408029300,1773051041821,-150.0,0.00019782,2]
[408029301,1773051041830,-769.0,0.00019782,2]
[408029302,1773051041839,-150.0,0.00019782,2]
[408029303,1773051041848,-500.0,0.00019782,2]
[408029304,1773051041857,-157.07135591,0.00019782,2]
[408029305,1773051041866,-440.0,0.00019782,2]
[408029306,1773051041875,-500.0,0.00019782,2]
[408029307,1773051041884,-883.0,0.00019782,2]
[408029308,1773051041893,-500.0,0.00019782,2]
[408029309,1773051041903,-351.82767376,0.00019782,2]
[408029310,1773051041912,-500.0,0.00019782,2]
[408029311,1773051041921,-500.0,0.00019782,2]
[408029312,1773051041930,-500.0,0.00019782,2]
[408029313,1773051041939,-150.0,0.00019782,2]
[408029314,1773051041948,-500.0,0.00019782,2]
[408029315,1773051041957,-500.0,0.00019782,2]
[408029316,1773051041966,-361.02563779,0.00019782,2]
[408029317,1773051041976,-500.0,0.00019782,2]
[408029318,1773051041984,-417.0,0.00019782,2]
[408029319,1773051041994,-500.0,0.00019782,2]
[408029320,1773051042003,-150.0,0.00019782,2]
[408029321,1773051042015,-179.08949688,0.00019782,2]
[408029322,1773051042023,-500.0,0.00019782,2]
[408029323,1773051042032,-264.10663282,0.00019782,2]
[408029324,1773051042041,-5672.51841179,0.00019785,2]
[408029325,1773051042051,-250.0,0.00019792,2]
[408029326,1773051042061,-8586.07896013,0.00019799,2]
[408029327,1773051042071,-2800.0,0.000198,2]
[408029328,1773051042080,-150.0,0.000198,30]
[408029329,1773051042091,-4172.997,0.000198,2]
[408029330,1773051042100,-181.736,0.000198,2]
[408029331,1773051042109,-20170.0,0.000198,2]
[408029332,1773051042118,-500.0,0.00019809,2]
[408029333,1773051042127,-500.0,0.00019809,2]
[408029334,1773051042137,-500.0,0.00019809,2]
[408029335,1773051042146,-500.0,0.00019809,2]
[408029336,1773051042156,-500.0,0.00019809,2]
[408029337,1773051042165,-500.0,0.00019809,2]
[408029338,1773051042174,-390.03191477,0.00019809,2]
[408029339,1773051042183,-173508.25989345,0.0001981,2]
[408029341,1773051042193,-250.0,0.0001981,2]
[408029343,1773051042202,-781.45,0.0001982,2]
[408029344,1773051042211,-1342.0,0.00019829,2]
[408029345,1773051042220,-619.0,0.00019829,2]
[408029346,1773051042230,-1042.0,0.00019829,2]
[408029347,1773051042239,-163.01,0.00019834,2]
[408029348,1773051042248,-161.77924979,0.00019836,2]
[408029349,1773051042257,-250.0,0.00019837,2]
[408029350,1773051042266,-500.0,0.00019837,2]
[408029352,1773051042276,-1672.0,0.00019837,2]
[408029354,1773051042285,-837.0,0.00019837,2]
[408029356,1773051042294,-500.0,0.00019837,2]
[408029357,1773051042304,-261.92100857,0.00019837,2]
[408029358,1773051042313,-769.0,0.00019837,2]
[408029359,1773051042324,-150.0,0.00019837,2]
[408029360,1773051042333,-500.0,0.00019837,2]
[408029361,1773051042342,-440.0,0.00019837,2]
[408029362,1773051042354,-500.0,0.00019837,2]
[408029363,1773051042364,-883.0,0.00019837,2]
[408029364,1773051042373,-500.0,0.00019837,2]
[408029365,1773051042383,-500.0,0.00019837,2]
[408029366,1773051042392,-500.0,0.00019837,2]
[408029367,1773051042401,-500.0,0.00019837,2]
[408029369,1773051042410,-173.89418644,0.00019837,2]
[408029370,1773051042420,-500.0,0.00019837,2]
[408029371,1773051042429,-500.0,0.00019837,2]
[408029372,1773051042438,-500.0,0.00019837,2]
[408029373,1773051042447,-417.0,0.00019837,2]
[408029374,1773051042457,-550.0,0.00019837,2]
[408029375,1773051042466,-150.0,0.00019837,2]
[408029376,1773051042475,-550.0,0.00019837,2]
[408029377,1773051042484,-1279.0,0.00019844,2]
[408029378,1773051042493,-150.0,0.00019844,2]
[408029379,1773051042502,-922.0,0.00019844,2]
[408029380,1773051042511,-1213.0,0.00019844,2]
[408029381,1773051042520,-2461.0,0.00019844,2]
[408029382,1773051042530,-5994.0,0.00019844,2]
[408029383,1773051042539,-8586.07896013,0.0001985,2]
[408029384,1773051042548,-167.6,0.0001985,2]
[408029385,1773051042558,-323.77109867,0.00019873,2]
[408029386,1773051042567,-500.0,0.00019873,2]
[408029387,1773051042578,-150.0,0.00019873,2]
[408029388,1773051042587,-250.0,0.00019873,3]
[408029389,1773051042596,-209.5,0.00019887,2]
[408029390,1773051042605,-267.0,0.00019889,2]
[408029391,1773051042614,-369.05367316,0.00019892,2]
[408029394,1773051042818,-1672.0,0.00019892,2]
[408029395,1773051042828,-401.70358089,0.00019892,2]
[408029396,1773051042838,-837.0,0.00019892,2]
[408029397,1773051042847,-769.0,0.00019892,2]
[408029398,1773051042856,-210.57620522,0.00019892,2]
[408029399,1773051042865,-550.0,0.00019892,2]
[408029400,1773051042875,-440.0,0.00019892,2]
[408029401,1773051042884,-154.61846768,0.00019892,2]
[408029402,1773051042894,-883.0,0.00019892,2]
[408029403,1773051042903,-500.0,0.00019892,2]
[408029404,1773051042912,-500.0,0.00019892,2]
[408029405,1773051042921,-500.0,0.00019892,2]
[408029407,1773051042931,-392.34426162,0.00019892,2]
[408029408,1773051042940,-500.0,0.00019892,2]
[408029409,1773051042949,-255.47740234,0.00019892,2]
[408029410,1773051042959,-500.0,0.00019892,2]
[408029411,1773051042968,-417.0,0.00019892,2]
[408029412,1773051042978,-244.99040052,0.00019892,2]
[408029413,1773051042987,-500.0,0.00019899,2]
[408029414,1773051042996,-151.0,0.00019899,2]
[408029415,1773051043006,-151.0,0.00019899,2]
[408029416,1773051043020,-151.0,0.00019899,2]
[408029417,1773051043029,-151.0,0.00019899,2]
[408029418,1773051043039,-151.0,0.00019899,2]
[408029419,1773051043048,-967.1067069,0.000199,2]
[408029420,1773051043058,-1066.73625963,0.000199,2]
[408029421,1773051043067,-25000.0,0.000199,3]
[408029422,1773051043076,-250.0,0.000199,3]
[408029423,1773051043087,-5577.32452627,0.000199,3]
[408029424,1773051043097,-2702.39283208,0.000199,2]
[408029425,1773051043107,-8531.31265296,0.000199,2]
[408029426,1773051043116,-4819.04359242,0.000199,2]
[408029427,1773051043126,-5672.51841179,0.000199,2]
[408029428,1773051043136,-8586.07896013,0.000199,2]
[408029429,1773051043145,-151.0,0.000199,2]
[408029430,1773051043154,-151.0,0.000199,2]
[408029431,1773051043163,-900.0,0.00019946,2]
[408029432,1773051043173,-1672.0,0.00019947,2]
[408029433,1773051043183,-837.0,0.00019947,2]
[408029434,1773051043192,-769.0,0.00019947,2]
[408029435,1773051043201,-440.0,0.00019947,2]
[408029436,1773051043211,-500.0,0.00019947,2]
[408029437,1773051043220,-883.0,0.00019947,2]
[408029438,1773051043229,-500.0,0.00019947,2]
[408029439,1773051043238,-500.0,0.00019947,2]
[408029440,1773051043248,-500.0,0.00019947,2]
[408029441,1773051043257,-500.0,0.00019947,2]
[408029442,1773051043266,-417.0,0.00019947,2]
[408029443,1773051043276,-250.0,0.00019947,3]
[408029444,1773051043285,-1108.21987424,0.0001995,15]
[408029445,1773051043294,-150.0,0.00019973,2]
[408029446,1773051043304,-3664.0,0.00019973,2]
[408029447,1773051043315,-1168.32,0.00019973,2]
[408029448,1773051043324,-495.8549494,0.0001998,2]
[408029449,1773051043334,-118906.15753635,0.0001998,2]
[408029450,1773051043343,-151.0,0.0001998,2]
[408029451,1773051043353,-151.0,0.0001998,2]
[408029452,1773051043362,-1065.8356265,0.00019983,2]
[408029453,1773051043371,-112741.4069729,0.00019983,2]
[408029454,1773051043381,-151.0,0.00019983,2]
[408029455,1773051043390,-3136.1063684,0.00019983,2]
[408029456,1773051043400,-151.0,0.00019983,2]
[408029457,1773051043409,-151.0,0.00019983,2]
[408029458,1773051043419,-250.0,0.00019983,3]
[408029459,1773051043428,-155.509,0.00019987,2]
[408029460,1773051043437,-500.0,0.00019989,2]
[408029461,1773051043448,-500.0,0.00019989,2]
[408029462,1773051043457,-500.0,0.00019989,2]
[408029463,1773051043467,-500.0,0.00019989,2]
[408029464,1773051043476,-150.0,0.0001999,2]
[408029465,1773051043485,-150.182,0.0001999,2]
[408029466,1773051043495,-150.0,0.0001999,2]
[408029467,1773051043504,-150.236,0.0001999,2]
[408029468,1773051043514,-150.1,0.0001999,2]
[408029469,1773051043523,-150.0,0.0001999,2]
[408029470,1773051043532,-150.0,0.0001999,2]
[408029471,1773051043541,-150.186,0.0001999,2]
[408029472,1773051043551,-150.0,0.0001999,2]
[408029473,1773051043561,-547.70819797,0.0001999,2]
[408029474,1773051043570,-547.70819797,0.0001999,2]
[408029475,1773051043579,-547.70819797,0.0001999,2]
[408029476,1773051043588,-7366.0957795,0.00019991,2]
[408029477,1773051043597,-13585.3126548,0.00019996,2]
[408029478,1773051043607,-3044.3441507,0.00019996,2]
[408029479,1773051043616,-500.0,0.00019998,2]
[408029480,1773051043626,-500.0,0.00019998,2]
[408029481,1773051043635,-500.0,0.00019998,2]
[408029482,1773051043645,-500.0,0.00019998,2]
[408029483,1773051043654,-500.0,0.00019998,2]
[408029484,1773051043663,-500.0,0.00019998,2]
[408029485,1773051043672,-506.82131153,0.00019998,2]
[408029486,1773051043681,-502.32320781,0.00019998,2]
[408029487,1773051043690,-442.86541715,0.00019998,2]
[408029488,1773051043700,-500.0,0.00019998,2]
[408029489,1773051043709,-500.0,0.00019998,2]
[408029490,1773051043718,-3000.0,0.00019998,2]
[408029491,1773051043727,-500.0,0.00019998,2]
[408029492,1773051043736,-500.0,0.00019999,2]
[408029493,1773051043746,-500.0,0.00019999,2]
[408029494,1773051043756,-500.0,0.00019999,2]
[408029495,1773051043766,-500.0,0.00019999,2]
[408029496,1773051043775,-517.33931831,0.00019999,2]
[408029497,1773051043784,-500.0,0.00019999,2]
[408029498,1773051043793,-500.0,0.00019999,2]
[408029499,1773051043803,-500.0,0.00019999,2]
[408029500,1773051043812,-500.0,0.00019999,2]
[408029501,1773051043821,-1048.80405627,0.00019999,5]
[408029502,1773051043830,-500.0,0.00019999,2]
[408029503,1773051043840,-500.0,0.00019999,2]
[408029504,1773051043849,-500.0,0.00019999,2]
[408029505,1773051043859,-500.0,0.00019999,2]
[408029506,1773051043868,-463.4000001,0.00019999,2]
[408029507,1773051043878,-437.89413426,0.00019999,2]
[408029508,1773051043888,-500.0,0.00019999,2]
[408029509,1773051043897,-615.85034056,0.00019999,2]
[408029510,1773051043906,-150.0,0.00019999,2]
[408029511,1773051043916,-500.0,0.00019999,2]
[408029512,1773051043925,-500.0,0.00019999,2]
[408029513,1773051043935,-33181.70399474,0.00019999,2]
[408029514,1773051043945,-500.0,0.00019999,2]
[408029515,1773051043954,-500.0,0.00019999,2]
[408029516,1773051043963,-500.0,0.00019999,2]
[408029517,1773051043973,-500.0,0.00019999,2]
[408029518,1773051043982,-500.0,0.00019999,2]
[408029519,1773051043991,-500.0,0.00019999,2]
[408029520,1773051044000,-500.0,0.00019999,2]
[408029521,1773051044015,-500.0,0.00019999,2]
[408029522,1773051044027,-500.0,0.00019999,2]
[408029523,1773051044036,-500.0,0.00019999,2]
[408029524,1773051044046,-500.0,0.00019999,2]
[408029525,1773051044057,-500.0,0.00019999,2]
[408029526,1773051044066,-500.0,0.00019999,2]
[408029527,1773051044075,-500.0,0.00019999,2]
[408029528,1773051044085,-500.0,0.00019999,2]
[408029529,1773051044095,-500.0,0.00019999,2]
[408029530,1773051044105,-500.0,0.00019999,2]
[408029531,1773051044114,-500.0,0.00019999,2]
[408029532,1773051044124,-500.0,0.00019999,2]
[408029533,1773051044135,-504.66308381,0.00019999,2]
[408029534,1773051044145,-500.0,0.00019999,2]
[408029535,1773051044154,-500.0,0.00019999,2]
[408029536,1773051044164,-504.92020981,0.00019999,2]
[408029537,1773051044174,-500.0,0.00019999,2]
[408029538,1773051044184,-500.0,0.00019999,2]
[408029539,1773051044195,-500.0,0.00019999,2]
[408029540,1773051044204,-500.0,0.00019999,2]
[408029541,1773051044213,-151.0,0.00019999,2]
[408029542,1773051044222,-151.0,0.00019999,2]
[408029543,1773051044231,-156.936219,0.00019999,2]
[408029544,1773051044241,-151.0,0.00019999,2]
[408029545,1773051044250,-270.04221902,0.00019999,2]
[408029546,1773051044259,-500.0,0.00019999,2]
[408029547,1773051044269,-500.0,0.00019999,2]
[408029548,1773051044278,-533.41629745,0.00019999,2]
[408029549,1773051044287,-306.76678934,0.00019999,2]
[408029550,1773051044296,-294.9535777,0.00019999,2]
[408029551,1773051044305,-1877.0,0.0002,2]
[408029552,1773051044315,-190835.08116655,0.0002,2]
[408029553,1773051044644,-522.797,0.00019844,2]
[408029554,1773051044655,-2800.27148462,0.0002,2]
[408029555,1773051044672,-604384.66637298,0.0002,2]
[408029556,1773051044725,-373.58184969,0.00018951,2]
[408029557,1773051044736,-126.41815031,0.00018951,2]
[408029558,1773051044746,-500.0,0.00018951,2]
[408029559,1773051044756,-500.0,0.00018951,2]
[408029560,1773051044766,-500.0,0.00018951,2]
[408029561,1773051044775,-500.0,0.00018951,2]
[408029562,1773051044784,-870.57276371,0.0002,2]
[408029563,1773051044996,-500.0,0.00018951,2]
[408029564,1773051045010,-110.77887769,0.00018951,2]
[408029565,1773051045482,-389.22112231,0.00018951,2]
[408029566,1773051045492,-500.0,0.00018951,2]
[408029567,1773051045502,-500.0,0.00018951,2]
[408029568,1773051045511,-500.0,0.00018951,2]
[408029569,1773051045520,-500.0,0.00018951,2]
[408029570,1773051045530,-500.0,0.00018951,2]
[408029571,1773051045539,-500.0,0.00018951,2]
[408029572,1773051045549,-500.0,0.00018951,2]
[408029573,1773051045558,-583.72902827,0.00018951,2]
[408029574,1773051045567,-1855.90639282,0.00019663,2]
[408029576,1773051250315,165.11,0.00014,2]
[408029577,1773051272024,483.07450817,0.00014533,2]
[408029578,1773051278125,180.20408328,0.00016,2]
[408029579,1773051501590,602.74,0.0001689,2]
[408029580,1773051696407,4000.0,0.0002,120]
[408029581,1773052211843,164.79,0.00014,2]
[408029591,1773052232133,-212.72571705,0.00016899,2]
[408029592,1773052232143,-600.0,0.00016905,2]
[408029593,1773052232152,-309.23045292,0.00016912,2]
[408029594,1773052232161,-195.0,0.00016924,2]
[408029595,1773052232170,-600.0,0.00016947,2]
[408029596,1773052232179,-277.0,0.00016999,2]
[408029597,1773052232188,-1200.0,0.00016999,2]
[408029598,1773052232198,-300.0,0.00016999,2]
[408029599,1773052232207,-500.0,0.00017,2]
[408029600,1773052232216,-500.0,0.00017,2]
[408029601,1773052232226,-500.0,0.00017,2]
[408029602,1773052232235,-500.0,0.00017,2]
[408029603,1773052232244,-505.0,0.00017,2]
[408029604,1773052232253,-505.0,0.00017,2]
[408029605,1773052232262,-1858.687085,0.00017051,2]
[408029606,1773052232272,-440.74276683,0.00017802,2]
[408029607,1773052232281,-880.93050677,0.000179,2]
[408029608,1773052232290,-369.05688088,0.000179,2]
[408029609,1773052232301,-369.05688087,0.000179,2]
[408029610,1773052232309,-369.05688087,0.000179,2]
[408029611,1773052232319,-369.05688087,0.000179,2]
[408029612,1773052232327,-164.79,0.000179,2]
[408029613,1773052232338,-200.25,0.00018,4]
[408029614,1773052232347,-152.0,0.00018066,3]
[408029615,1773052232356,-880.93050676,0.00018079,2]
[408029616,1773052232366,-207.82,0.00018096,2]
[408029617,1773052232377,-610.12074509,0.00018099,2]
[408029618,1773052232386,-201.10239433,0.00018213,5]
[408029619,1773052232396,-1005.36,0.00018261,2]
[408029620,1773052232405,-2000.0,0.00018319,2]
[408029621,1773052232414,-1732.03,0.00018342,2]
[408029622,1773052232424,-500.0,0.00018356,7]
[408029623,1773052232435,-500.0,0.00018356,7]
[408029624,1773052232447,-500.0,0.00018356,7]
[408029625,1773052232457,-880.93050676,0.00018357,2]
[408029626,1773052232466,-2098.5383406,0.000184,2]
[408029627,1773052232478,-862.4616594,0.000184,2]
[408029628,1773052232487,-200.0,0.000184,2]
[408029629,1773052232496,-200.0,0.00018517,2]
[408029630,1773052232506,-500.0,0.00018521,2]
[408029631,1773052232518,-420.0,0.00018567,2]
[408029632,1773052232528,-550.0,0.00018577,2]
[408029633,1773052232539,-500.0,0.00018578,2]
[408029634,1773052232548,-500.0,0.00018578,2]
[408029635,1773052232557,-500.0,0.00018578,2]
[408029636,1773052232566,-500.0,0.00018578,2]
[408029637,1773052232575,-500.0,0.00018578,2]
[408029638,1773052232586,-500.0,0.00018578,2]
[408029639,1773052232596,-500.0,0.00018578,2]
[408029640,1773052232605,-500.0,0.00018578,2]
[408029641,1773052232614,-500.0,0.00018578,2]
[408029642,1773052232623,-500.0,0.00018578,2]
[408029643,1773052232632,-500.0,0.00018578,2]
[408029644,1773052232641,-151.0,0.00018578,2]
[408029645,1773052232650,-500.0,0.00018578,2]
[408029646,1773052232659,-151.0,0.00018578,2]
[408029647,1773052232668,-500.0,0.00018578,2]
[408029648,1773052232678,-151.0,0.00018578,2]
[408029649,1773052232687,-500.0,0.00018578,2]
[408029650,1773052232698,-151.0,0.00018578,2]
[408029651,1773052232707,-500.0,0.00018578,2]
[408029652,1773052232717,-151.0,0.00018578,2]
[408029653,1773052232727,-500.0,0.00018578,2]
[408029654,1773052232736,-151.0,0.00018578,2]
[408029655,1773052232746,-500.0,0.00018578,2]
[408029656,1773052232755,-151.0,0.00018578,2]
[408029657,1773052232765,-500.0,0.00018578,2]
[408029658,1773052232774,-151.0,0.00018578,2]
[408029659,1773052232784,-500.0,0.00018578,2]
[408029660,1773052232794,-151.0,0.00018578,2]
[408029661,1773052232803,-500.0,0.00018578,2]
[408029662,1773052232812,-151.0,0.00018578,2]
[408029663,1773052232822,-500.0,0.00018578,2]
[408029664,1773052232832,-151.0,0.00018578,2]
[408029665,1773052232841,-500.0,0.00018578,2]
[408029666,1773052232851,-151.0,0.00018578,2]
[408029667,1773052232860,-151.0,0.00018578,2]
[408029668,1773052232869,-194.24944797,0.00018589,2]
[408029669,1773052232879,-195.0,0.00018589,2]
[408029670,1773052232888,-195.0,0.00018589,2]
[408029671,1773052232897,-600.0,0.00018589,2]
[408029672,1773052232907,-250.0,0.00018589,2]
[408029673,1773052232917,-2500.0,0.00018589,2]
[408029674,1773052232926,-3672.30162705,0.0001863,3]
[408029675,1773052232935,-880.93050676,0.00018636,2]
[408029676,1773052232945,-500.0,0.00018658,2]
[408029677,1773052232954,-1680.0,0.00018659,2]
[408029678,1773052232963,-500.0,0.00018682,2]
[408029679,1773052232972,-500.0,0.00018682,2]
[408029680,1773052232981,-387.45,0.00018709,2]
[408029681,1773052232991,-1005.36,0.00018718,2]
[408029682,1773052233000,-847.0,0.0001872,2]
[408029683,1773052233009,-415.0,0.0001872,2]
[408029684,1773052233019,-2831.0,0.0001872,2]
[408029685,1773052233028,-152.0,0.00018726,4]
[408029686,1773052233037,-502.1202599,0.0001877,2]
[408029687,1773052233047,-500.23838819,0.0001877,2]
[408029688,1773052233056,-500.0,0.0001877,2]
[408029689,1773052233064,-549.72227335,0.0001877,2]
[408029690,1773052233074,-267.1,0.00018775,2]
[408029691,1773052233084,-255.54100088,0.00018783,2]
[408029692,1773052233094,-505.0,0.000188,3]
[408029693,1773052233103,-267.1,0.00018886,2]
[408029694,1773052233112,-500.0,0.00018974,2]
[408029695,1773052233122,-1469.73446645,0.00018974,2]
[408029696,1773052233131,-578.20924308,0.00018974,2]
[408029697,1773052233141,-500.0,0.00018974,2]
[408029698,1773052233151,-500.0,0.00018974,2]
[408029699,1773052233161,-250.0,0.00018974,2]
[408029700,1773052233170,-500.0,0.00018974,2]
[408029701,1773052233180,-250.0,0.00018974,2]
[408029702,1773052233190,-500.0,0.00018974,2]
[408029703,1773052233199,-250.0,0.00018974,2]
[408029704,1773052233208,-500.0,0.00018974,2]
[408029705,1773052233219,-250.0,0.00018974,2]
[408029706,1773052233229,-500.0,0.00018974,2]
[408029707,1773052233239,-250.0,0.00018974,2]
[408029708,1773052233248,-500.0,0.00018974,2]
[408029709,1773052233258,-250.0,0.00018974,2]
[408029710,1773052233267,-500.0,0.00018974,2]
[408029711,1773052233276,-250.0,0.00018974,2]
[408029712,1773052233285,-151.0,0.00018974,2]
[408029713,1773052233295,-250.0,0.00018974,2]
[408029714,1773052233304,-250.0,0.00018974,2]
[408029715,1773052233313,-250.0,0.00018974,2]
[408029716,1773052233323,-250.0,0.00018974,2]
[408029717,1773052233334,-174.61919141,0.00018974,2]
[408029718,1773052233345,-2005.00000002,0.00018974,2]
[408029719,1773052233354,-7097.77858251,0.00018974,2]
[408029720,1773052233365,-200.0,0.00018974,2]
[408029721,1773052233379,-1500.0,0.00018974,2]
[408029722,1773052233389,-1500.0,0.00018974,2]
[408029723,1773052233398,-1500.0,0.00018974,2]
[408029724,1773052233408,-264.8357459,0.00018974,2]
[408029725,1773052233419,-1500.0,0.00018974,2]
[408029726,1773052233429,-596.89805535,0.00018974,2]
[408029727,1773052233440,-1500.0,0.00018974,2]
[408029728,1773052233450,-1500.0,0.00018974,2]
[408029729,1773052233460,-1500.0,0.00018974,2]
[408029730,1773052233469,-1000.0,0.00018974,2]
[408029731,1773052233479,-290.26104003,0.00018974,2]
[408029732,1773052233489,-262.90206542,0.00018974,2]
[408029733,1773052233499,-150.0,0.00018983,2]
[408029734,1773052233508,-387.45,0.00018983,2]
[408029735,1773052233518,-500.0,0.00018986,2]
[408029736,1773052233527,-310.41600535,0.0001899,2]
[408029737,1773052233537,-267.1,0.00018998,2]
[408029738,1773052233547,-810.449072,0.00019,2]
[408029739,1773052233557,-162.59021419,0.00019014,2]
[408029740,1773052233567,-151.0,0.00019029,2]
[408029741,1773052233576,-847.0,0.0001904,2]
[408029742,1773052233589,-847.0,0.0001904,2]
[408029743,1773052233599,-151.0,0.00019084,2]
[408029744,1773052233609,-280.0,0.00019101,2]
[408029745,1773052233619,-1168.32,0.00019102,2]
[408029746,1773052233629,-267.1,0.00019109,2]
[408029747,1773052233638,-479.7863268,0.00019119,2]
[408029748,1773052233648,-22232.65820692,0.0001912,2]
[408029749,1773052233673,-417.46711665,0.0001912,2]
[408029751,1773052237721,-21347.29007643,0.0001912,2]
[408029752,1773052237731,-151.0,0.00019139,2]
[408029753,1773052237740,-1005.36,0.00019175,2]
[408029754,1773052237750,-1000.0,0.00019178,2]
[408029755,1773052237759,-151.0,0.00019194,2]
[408029756,1773052237768,-2000.0,0.000192,2]
[408029757,1773052237777,-162.59021419,0.00019205,2]
[408029758,1773052237788,-267.1,0.0001922,2]
[408029759,1773052237800,-500.0,0.0001923,2]
[408029760,1773052237809,-500.0,0.0001923,2]
[408029761,1773052237819,-1000.0,0.00019235,2]
[408029762,1773052237829,-333.79794278,0.00019255,2]
[408029763,1773052237839,-387.45,0.00019257,2]
[408029764,1773052237848,-2726.09,0.00019282,2]
[408029765,1773052237857,-1847.95,0.00019288,2]
[408029766,1773052237866,-500.0,0.00019323,2]
[408029767,1773052237875,-500.0,0.00019323,2]
[408029769,1773052237884,-500.0,0.00019323,2]
[408029771,1773052237893,-267.1,0.00019332,2]
[408029773,1773052237903,-152.0,0.00019385,5]
[408029775,1773052237912,-285.39932339,0.00019391,2]
[408029776,1773052237921,-153.42726248,0.00019399,2]
[408029777,1773052237929,-709.0,0.00019419,2]
[408029778,1773052237938,-162.59021419,0.00019425,2]
[408029779,1773052237947,-162.63455781,0.00019425,2]
[408029780,1773052237956,-267.1,0.00019443,2]
[408029781,1773052237966,-500.0,0.00019452,7]
[408029782,1773052237975,-500.0,0.00019452,7]
[408029783,1773052237984,-1000.0,0.00019452,2]
[408029784,1773052237993,-181.08010149,0.00019522,2]
[408029785,1773052238001,-301.00069851,0.00019522,2]
[408029786,1773052238010,-272.62944185,0.00019522,2]
[408029787,1773052238019,-387.45,0.00019531,2]
[408029788,1773052238028,-709.0,0.00019539,2]
[408029789,1773052238037,-500.0,0.00019546,2]
[408029790,1773052238046,-500.0,0.00019546,2]
[408029791,1773052238055,-500.0,0.00019546,2]
[408029792,1773052238066,-267.1,0.00019555,2]
[408029793,1773052238079,-280.0,0.00019574,2]
[408029794,1773052238089,-280.0,0.00019579,2]
[408029795,1773052238098,-175.07643417,0.000196,2]
[408029796,1773052238107,-1115.10171428,0.000196,2]
[408029797,1773052238116,-1136.50244925,0.000196,2]
[408029798,1773052238129,-1382.74700049,0.000196,2]
[408029799,1773052238138,-1875.164868,0.000196,2]
[408029800,1773052238147,-1405.98906032,0.000196,2]
[408029801,1773052238156,-162.59021419,0.00019616,2]
[408029802,1773052238165,-1005.36,0.00019631,2]
[408029803,1773052238176,-267.1,0.00019666,2]
[408029804,1773052238185,-423.0,0.0001967,5]
[408029805,1773052238194,-500.0,0.00019673,2]
[408029806,1773052238203,-150.0,0.00019673,2]
[408029807,1773052238212,-1059.0,0.00019673,2]
[408029808,1773052238221,-150.0,0.00019673,2]
[408029809,1773052238230,-467.0,0.00019673,2]
[408029810,1773052238239,-150.0,0.00019673,2]
[408029811,1773052238248,-1184.0,0.00019673,2]
[408029812,1773052238257,-500.0,0.00019673,2]
[408029813,1773052238266,-500.0,0.00019673,2]
[408029814,1773052238275,-593.0,0.00019673,2]
[408029815,1773052238285,-150.0,0.00019673,2]
[408029816,1773052238296,-500.0,0.00019673,2]
[408029817,1773052238305,-500.0,0.00019673,2]
[408029818,1773052238315,-577.0,0.00019673,2]
[408029819,1773052238324,-150.0,0.00019673,2]